fUSD/lending_fUSD_20260616
["ID","MTS","AMOUNT","RATE_DAILY","PERIOD"]
[425197173,1781567443000,-168.0,0.00032117,30]
[425197178,1781567443000,-1049.0,0.0003212,30]
[425197167,1781567443000,-700.0,0.00032,2]
[425197176,1781567443000,-151.0,0.0003212,30]
[425197181,1781567443000,-158.0,0.00032126,30]
[425197187,1781567443000,-1005.7,0.00032248,7]
[425197197,1781567443000,-156.587,0.00032498,2]
[425197186,1781567443000,-371.0,0.0003221,5]
[425197182,1781567443000,-444.0,0.00032126,30]
[425197180,1781567443000,-153.0,0.00032126,30]
[425197174,1781567443000,-176.0,0.00032117,30]
[425197179,1781567443000,-3741.0,0.0003212,30]
[425197177,1781567443000,-153.0,0.0003212,30]
[425197183,1781567443000,-154.0,0.00032126,30]
[425197185,1781567443000,-1466.52956362,0.00032192,30]
[425197175,1781567443000,-156.0,0.0003212,30]
[425197189,1781567443000,-200.0,0.000324,12]
[425197256,1781567444000,-1000.0,0.00032877,10]
[425197263,1781567444000,-1000.0,0.00032877,10]
[425197259,1781567444000,-1000.0,0.00032877,10]
[425197266,1781567444000,-1000.0,0.00032877,10]
[425197252,1781567444000,-1000.0,0.00032877,10]
[425197267,1781567444000,-1000.0,0.00032877,10]
[425197254,1781567444000,-1000.0,0.00032877,10]
[425197251,1781567444000,-1000.0,0.00032877,10]
[425197253,1781567444000,-1000.0,0.00032877,10]
[425197250,1781567444000,-1000.0,0.00032877,10]
[425197257,1781567444000,-1000.0,0.00032877,10]
[425197258,1781567444000,-1000.0,0.00032877,10]
[425197271,1781567444000,-1000.0,0.00032877,10]
[425197261,1781567444000,-1000.0,0.00032877,10]
[425197264,1781567444000,-1000.0,0.00032877,10]
[425197260,1781567444000,-1000.0,0.00032877,10]
[425197262,1781567444000,-1000.0,0.00032877,10]
[425197268,1781567444000,-1000.0,0.00032877,10]
[425197273,1781567444000,-1000.0,0.00032877,10]
[425197269,1781567444000,-1000.0,0.00032877,10]
[425197275,1781567444000,-1000.0,0.00032877,10]
[425197270,1781567444000,-1000.0,0.00032877,10]
[425197274,1781567444000,-1000.0,0.00032877,10]
[425197272,1781567444000,-1000.0,0.00032877,10]
[425197249,1781567444000,-1000.0,0.00032877,10]
[425197265,1781567444000,-1000.0,0.00032877,10]
[425197245,1781567444000,-1000.0,0.00032877,10]
[425197243,1781567444000,-1000.0,0.00032877,10]
[425197248,1781567444000,-1000.0,0.00032877,10]
[425197278,1781567444000,-1000.0,0.00032877,10]
[425197221,1781567444000,-150.0,0.00032562,2]
[425197226,1781567444000,-1186.15366837,0.00032739,7]
[425197223,1781567444000,-328.881994,0.000326,14]
[425197222,1781567444000,-328.881994,0.000326,7]
[425197229,1781567444000,-1176.78587215,0.00032739,7]
[425197224,1781567444000,-3298.55,0.0003267,7]
[425197227,1781567444000,-1107.27127634,0.00032739,7]
[425197225,1781567444000,-1312.04350956,0.00032739,7]
[425197230,1781567444000,-1161.7844515,0.00032739,7]
[425197231,1781567444000,-1294.61545299,0.00032745,7]
[425197228,1781567444000,-1163.0689634,0.00032739,2]
[425197255,1781567444000,-1000.0,0.00032877,10]
[425197233,1781567444000,-639.38,0.00032835,7]
[425197232,1781567444000,-6349.69,0.00032801,2]
[425197236,1781567444000,-4550.0,0.00032877,5]
[425197234,1781567444000,-4565.0,0.00032877,5]
[425197237,1781567444000,-4467.0,0.00032877,5]
[425197238,1781567444000,-399.0,0.00032877,2]
[425197240,1781567444000,-1000.0,0.00032877,10]
[425197241,1781567444000,-1000.0,0.00032877,10]
[425197242,1781567444000,-1000.0,0.00032877,10]
[425197239,1781567444000,-351.72,0.00032877,2]
[425197244,1781567444000,-1000.0,0.00032877,10]
[425197246,1781567444000,-1000.0,0.00032877,10]
[425197247,1781567444000,-1000.0,0.00032877,10]
[425197235,1781567444000,-410.0,0.00032877,2]
[425197277,1781567444000,-1000.0,0.00032877,10]
[425197286,1781567444000,-500.0,0.00032877,2]
[425197290,1781567444000,-500.0,0.00032877,2]
[425197313,1781567444000,-150.0,0.0003308,2]
[425197310,1781567444000,-150.0,0.0003308,2]
[425197312,1781567444000,-150.0,0.0003308,2]
[425197323,1781567444000,-286.25894906,0.00033123,120]
[425197314,1781567444000,-760.0,0.00033117,30]
[425197324,1781567444000,-165.79532631,0.00033123,120]
[425197315,1781567444000,-168.0,0.00033117,30]
[425197318,1781567444000,-151.0,0.0003312,30]
[425197317,1781567444000,-156.0,0.0003312,30]
[425197322,1781567444000,-159.59241831,0.00033123,120]
[425197319,1781567444000,-153.0,0.0003312,30]
[425197316,1781567444000,-176.0,0.00033117,30]
[425197320,1781567444000,-1049.0,0.0003312,30]
[425197321,1781567444000,-3741.0,0.0003312,30]
[425197326,1781567444000,-158.0,0.00033126,30]
[425197325,1781567444000,-157.0,0.00033126,30]
[425197327,1781567444000,-444.0,0.00033126,30]
[425197276,1781567444000,-1000.0,0.00032877,10]
[425197328,1781567444000,-154.0,0.00033126,30]
[425197329,1781567444000,-1902.3,0.00033171,7]
[425197332,1781567444000,-416.49,0.00033327,7]
[425197334,1781567444000,-1188.39030076,0.00033397,2]
[425197330,1781567444000,-385.126568,0.00033177,120]
[425197335,1781567444000,-200.0,0.000334,13]
[425197333,1781567444000,-3298.55,0.00033355,7]
[425197309,1781567444000,-150.0,0.0003308,2]
[425197306,1781567444000,-3543.985,0.00033072,34]
[425197331,1781567444000,-500.0,0.00033259,2]
[425197307,1781567444000,-311.117,0.00033072,34]
[425197308,1781567444000,-150.0,0.0003308,2]
[425197280,1781567444000,-1000.0,0.00032877,10]
[425197291,1781567444000,-4588.0,0.00032877,5]
[425197281,1781567444000,-1000.0,0.00032877,10]
[425197287,1781567444000,-432.59744951,0.00032877,2]
[425197283,1781567444000,-351.33713345,0.00032877,7]
[425197285,1781567444000,-702.6742669,0.00032877,7]
[425197282,1781567444000,-175.66856672,0.00032877,7]
[425197284,1781567444000,-527.00570017,0.00032877,7]
[425197288,1781567444000,-500.0,0.00032877,2]
[425197289,1781567444000,-500.0,0.00032877,2]
[425197292,1781567444000,-4463.0,0.00032877,5]
[425197298,1781567444000,-500.0,0.00032955,2]
[425197279,1781567444000,-1000.0,0.00032877,10]
[425197296,1781567444000,-150.0,0.00032955,2]
[425197293,1781567444000,-332.010738,0.00032877,120]
[425197311,1781567444000,-150.0,0.0003308,2]
[425197304,1781567444000,-1466.52956362,0.00033048,30]
[425197300,1781567444000,-510.19461224,0.00032955,2]
[425197294,1781567444000,-838.0,0.00032883,8]
[425197305,1781567444000,-501.0,0.00033071,8]
[425197302,1781567444000,-441.36,0.00033029,2]
[425197301,1781567444000,-9614.40720427,0.00032985,2]
[425197297,1781567444000,-291.10825601,0.00032955,2]
[425197295,1781567444000,-1176.80518175,0.00032919,7]
[425197303,1781567444000,-150.330401,0.0003304,2]
[425197299,1781567444000,-500.0,0.00032955,2]
[425197358,1781567445000,-750.0,0.00034,2]
[425197360,1781567445000,-3298.55,0.0003404,7]
[425197371,1781567445000,-444.0,0.00034126,30]
[425197378,1781567445000,-198.51,0.00034212,120]
[425197366,1781567445000,-162.0,0.0003412,30]
[425197363,1781567445000,-168.0,0.00034117,30]
[425197365,1781567445000,-156.0,0.0003412,30]
[425197361,1781567445000,-303.487873,0.00034078,120]
[425197372,1781567445000,-154.0,0.00034126,30]
[425197369,1781567445000,-3741.0,0.0003412,30]
[425197370,1781567445000,-158.0,0.00034126,30]
[425197364,1781567445000,-176.0,0.00034117,30]
[425197367,1781567445000,-164.0,0.0003412,30]
[425197377,1781567445000,-150.0,0.0003419,2]
[425197374,1781567445000,-393.24,0.00034155,7]
[425197375,1781567445000,-371.0,0.00034182,7]
[425197357,1781567445000,-428.12,0.00034,30]
[425197368,1781567445000,-1049.0,0.0003412,30]
[425197359,1781567445000,-16633.09109638,0.00034017,2]
[425197346,1781567445000,-217.29,0.000338,30]
[425197350,1781567445000,-150.0,0.00033815,2]
[425197336,1781567445000,-878.34283362,0.00033453,7]
[425197338,1781567445000,-322.305238,0.00033477,120]
[425197337,1781567445000,-1509.31,0.00033458,5]
[425197343,1781567445000,-972.54,0.00033714,30]
[425197345,1781567445000,-317.552219,0.00033777,120]
[425197344,1781567445000,-175.30891986,0.00033753,2]
[425197347,1781567445000,-150.0,0.00033815,2]
[425197348,1781567445000,-150.0,0.00033815,2]
[425197356,1781567445000,-1466.52956362,0.00033904,30]
[425197339,1781567445000,-6349.69,0.00033486,2]
[425197341,1781567445000,-334.881994,0.000337,7]
[425197342,1781567445000,-334.881994,0.000337,14]
[425197349,1781567445000,-150.0,0.00033815,2]
[425197352,1781567445000,-1902.3,0.00033856,7]
[425197353,1781567445000,-579.94817706,0.00033897,3]
[425197354,1781567445000,-3295.56877166,0.000339,120]
[425197351,1781567445000,-150.0,0.00033815,2]
[425197355,1781567445000,-1100.0,0.000339,12]
[425197340,1781567445000,-501.0,0.0003361,9]
[425197376,1781567445000,-153.0545,0.00034185,2]
[425197362,1781567445000,-760.0,0.00034117,30]
[425197382,1781567445000,-160.247381,0.00034377,120]
[425197402,1781567445000,-300.0,0.0003442,2]
[425197403,1781567445000,-300.0,0.0003442,2]
[425197405,1781567445000,-314.70441387,0.0003442,2]
[425197404,1781567445000,-536.07617039,0.0003442,2]
[425197406,1781567445000,-729.13704685,0.0003442,2]
[425197407,1781567445000,-302.96749636,0.0003442,2]
[425197410,1781567445000,-300.75310972,0.0003442,2]
[425197408,1781567445000,-300.0,0.0003442,2]
[425197401,1781567445000,-300.05257552,0.0003442,2]
[425197412,1781567445000,-300.0,0.0003442,2]
[425197411,1781567445000,-301.74079207,0.0003442,2]
[425197413,1781567445000,-345.43622798,0.0003442,2]
[425197414,1781567445000,-300.0,0.0003442,2]
[425197415,1781567445000,-300.0,0.0003442,2]
[425197417,1781567445000,-300.0,0.0003442,2]
[425197419,1781567445000,-528.93064975,0.0003442,2]
[425197418,1781567445000,-345.28584049,0.0003442,2]
[425197416,1781567445000,-300.0,0.0003442,2]
[425197409,1781567445000,-303.26145733,0.0003442,2]
[425197400,1781567445000,-300.0,0.0003442,2]
[425197379,1781567445000,-159.17,0.00034247,120]
[425197397,1781567445000,-300.0,0.0003442,2]
[425197399,1781567445000,-607.00878667,0.0003442,2]
[425197380,1781567445000,-1068.06329941,0.000343,120]
[425197373,1781567445000,-501.0,0.00034149,9]
[425197381,1781567445000,-1139.96746197,0.00034371,30]
[425197386,1781567445000,-421.0,0.0003441,2]
[425197384,1781567445000,-5000.0,0.000344,120]
[425197387,1781567445000,-1734.68,0.0003441,2]
[425197385,1781567445000,-250.0,0.0003441,7]
[425197388,1781567445000,-1415.13,0.00034416,5]
[425197383,1781567445000,-200.0,0.000344,13]
[425197391,1781567445000,-300.0,0.0003442,2]
[425197389,1781567445000,-300.0,0.0003442,2]
[425197392,1781567445000,-300.0,0.0003442,2]
[425197393,1781567445000,-300.0,0.0003442,2]
[425197394,1781567445000,-494.59915897,0.0003442,2]
[425197398,1781567445000,-300.0,0.0003442,2]
[425197395,1781567445000,-300.0,0.0003442,2]
[425197396,1781567445000,-300.0,0.0003442,2]
[425197390,1781567445000,-300.0,0.0003442,2]
[425197436,1781567446000,-596.47889358,0.0003442,2]
[425197438,1781567446000,-300.0,0.0003442,2]
[425197437,1781567446000,-300.0,0.0003442,2]
[425197440,1781567446000,-300.0,0.0003442,2]
[425197444,1781567446000,-300.0,0.0003442,2]
[425197441,1781567446000,-583.50929019,0.0003442,2]
[425197448,1781567446000,-445.47580286,0.0003442,2]
[425197442,1781567446000,-300.0,0.0003442,2]
[425197447,1781567446000,-300.0,0.0003442,2]
[425197443,1781567446000,-453.65517008,0.0003442,2]
[425197450,1781567446000,-300.0,0.0003442,2]
[425197454,1781567446000,-835.12773202,0.0003442,2]
[425197439,1781567446000,-513.2596001,0.0003442,2]
[425197446,1781567446000,-300.0,0.0003442,2]
[425197434,1781567446000,-300.0,0.0003442,2]
[425197423,1781567446000,-300.0,0.0003442,2]
[425197433,1781567446000,-1346.16314365,0.0003442,2]
[425197431,1781567446000,-300.0,0.0003442,2]
[425197432,1781567446000,-300.0,0.0003442,2]
[425197428,1781567446000,-300.0,0.0003442,2]
[425197430,1781567446000,-310.80214287,0.0003442,2]
[425197429,1781567446000,-300.0,0.0003442,2]
[425197427,1781567446000,-300.0,0.0003442,2]
[425197422,1781567446000,-300.0,0.0003442,2]
[425197449,1781567446000,-300.0,0.0003442,2]
[425197425,1781567446000,-952.99609518,0.0003442,2]
[425197421,1781567446000,-300.0,0.0003442,2]
[425197426,1781567446000,-1804.8149799,0.0003442,2]
[425197424,1781567446000,-868.02305374,0.0003442,2]
[425197420,1781567446000,-300.0,0.0003442,2]
[425197435,1781567446000,-300.0,0.0003442,2]
[425197451,1781567446000,-300.0,0.0003442,2]
[425197445,1781567446000,-300.0,0.0003442,2]
[425197452,1781567446000,-300.0,0.0003442,2]
[425197472,1781567446000,-300.0,0.0003442,2]
[425197474,1781567446000,-300.0,0.0003442,2]
[425197475,1781567446000,-607.00878667,0.0003442,2]
[425197480,1781567446000,-729.13704685,0.0003442,2]
[425197478,1781567446000,-300.0,0.0003442,2]
[425197477,1781567446000,-300.0,0.0003442,2]
[425197473,1781567446000,-300.0,0.0003442,2]
[425197484,1781567446000,-300.75310972,0.0003442,2]
[425197482,1781567446000,-302.96749636,0.0003442,2]
[425197481,1781567446000,-300.0,0.0003442,2]
[425197485,1781567446000,-301.74079207,0.0003442,2]
[425197483,1781567446000,-300.0,0.0003442,2]
[425197486,1781567446000,-300.0,0.0003442,2]
[425197453,1781567446000,-300.0,0.0003442,2]
[425197476,1781567446000,-300.0,0.0003442,2]
[425197469,1781567446000,-300.0,0.0003442,2]
[425197479,1781567446000,-536.07617039,0.0003442,2]
[425197470,1781567446000,-367.94630788,0.0003442,2]
[425197455,1781567446000,-631.89460315,0.0003442,2]
[425197471,1781567446000,-300.0,0.0003442,2]
[425197456,1781567446000,-1099.53596865,0.0003442,2]
[425197457,1781567446000,-300.0,0.0003442,2]
[425197459,1781567446000,-300.0,0.0003442,2]
[425197458,1781567446000,-300.0,0.0003442,2]
[425197461,1781567446000,-300.0,0.0003442,2]
[425197460,1781567446000,-300.0,0.0003442,2]
[425197464,1781567446000,-300.0,0.0003442,2]
[425197465,1781567446000,-300.0,0.0003442,2]
[425197462,1781567446000,-300.0,0.0003442,2]
[425197466,1781567446000,-300.0,0.0003442,2]
[425197467,1781567446000,-300.0,0.0003442,2]
[425197468,1781567446000,-494.59915897,0.0003442,2]
[425197463,1781567446000,-300.0,0.0003442,2]
[425197512,1781567447000,-596.47889358,0.0003442,2]
[425197518,1781567447000,-300.0,0.0003442,2]
[425197510,1781567447000,-300.0,0.0003442,2]
[425197511,1781567447000,-300.0,0.0003442,2]
[425197513,1781567447000,-300.0,0.0003442,2]
[425197516,1781567447000,-300.0,0.0003442,2]
[425197514,1781567447000,-300.0,0.0003442,2]
[425197515,1781567447000,-513.2596001,0.0003442,2]
[425197529,1781567447000,-300.0,0.0003442,2]
[425197528,1781567447000,-300.0,0.0003442,2]
[425197522,1781567447000,-300.0,0.0003442,2]
[425197520,1781567447000,-300.0,0.0003442,2]
[425197521,1781567447000,-300.0,0.0003442,2]
[425197523,1781567447000,-300.0,0.0003442,2]
[425197524,1781567447000,-300.0,0.0003442,2]
[425197525,1781567447000,-445.47580286,0.0003442,2]
[425197527,1781567447000,-300.0,0.0003442,2]
[425197526,1781567447000,-300.0,0.0003442,2]
[425197519,1781567447000,-453.65517008,0.0003442,2]
[425197508,1781567447000,-300.0,0.0003442,2]
[425197491,1781567447000,-300.0,0.0003442,2]
[425197507,1781567447000,-300.0,0.0003442,2]
[425197530,1781567447000,-300.0,0.0003442,2]
[425197487,1781567447000,-300.0,0.0003442,2]
[425197488,1781567447000,-300.0,0.0003442,2]
[425197490,1781567447000,-300.0,0.0003442,2]
[425197493,1781567447000,-345.28584049,0.0003442,2]
[425197494,1781567447000,-300.0,0.0003442,2]
[425197489,1781567447000,-300.0,0.0003442,2]
[425197492,1781567447000,-300.0,0.0003442,2]
[425197496,1781567447000,-300.0,0.0003442,2]
[425197499,1781567447000,-868.02305374,0.0003442,2]
[425197495,1781567447000,-528.93064975,0.0003442,2]
[425197498,1781567447000,-300.0,0.0003442,2]
[425197500,1781567447000,-952.99609518,0.0003442,2]
[425197501,1781567447000,-1804.8149799,0.0003442,2]
[425197497,1781567447000,-300.0,0.0003442,2]
[425197503,1781567447000,-300.0,0.0003442,2]
[425197502,1781567447000,-300.0,0.0003442,2]
[425197506,1781567447000,-310.80214287,0.0003442,2]
[425197504,1781567447000,-300.0,0.0003442,2]
[425197509,1781567447000,-1346.16314365,0.0003442,2]
[425197538,1781567447000,-300.0,0.0003442,2]
[425197505,1781567447000,-300.0,0.0003442,2]
[425197534,1781567447000,-300.0,0.0003442,2]
[425197558,1781567447000,-300.0,0.0003442,2]
[425197556,1781567447000,-536.07617039,0.0003442,2]
[425197562,1781567447000,-301.74079207,0.0003442,2]
[425197568,1781567447000,-300.0,0.0003442,2]
[425197563,1781567447000,-300.0,0.0003442,2]
[425197565,1781567447000,-300.0,0.0003442,2]
[425197561,1781567447000,-300.75310972,0.0003442,2]
[425197564,1781567447000,-300.0,0.0003442,2]
[425197560,1781567447000,-300.0,0.0003442,2]
[425197554,1781567447000,-300.0,0.0003442,2]
[425197566,1781567447000,-300.0,0.0003442,2]
[425197569,1781567447000,-300.0,0.0003442,2]
[425197570,1781567447000,-345.28584049,0.0003442,2]
[425197572,1781567447000,-300.0,0.0003442,2]
[425197573,1781567447000,-300.0,0.0003442,2]
[425197574,1781567447000,-300.0,0.0003442,2]
[425197576,1781567447000,-868.02305374,0.0003442,2]
[425197575,1781567447000,-300.0,0.0003442,2]
[425197571,1781567447000,-528.93064975,0.0003442,2]
[425197536,1781567447000,-300.0,0.0003442,2]
[425197567,1781567447000,-300.0,0.0003442,2]
[425197553,1781567447000,-300.0,0.0003442,2]
[425197517,1781567447000,-583.50929019,0.0003442,2]
[425197552,1781567447000,-607.00878667,0.0003442,2]
[425197535,1781567447000,-300.0,0.0003442,2]
[425197531,1781567447000,-835.12773202,0.0003442,2]
[425197532,1781567447000,-300.0,0.0003442,2]
[425197537,1781567447000,-300.0,0.0003442,2]
[425197533,1781567447000,-1099.53596865,0.0003442,2]
[425197540,1781567447000,-300.0,0.0003442,2]
[425197546,1781567447000,-494.59915897,0.0003442,2]
[425197544,1781567447000,-300.0,0.0003442,2]
[425197543,1781567447000,-300.0,0.0003442,2]
[425197542,1781567447000,-300.0,0.0003442,2]
[425197557,1781567447000,-729.13704685,0.0003442,2]
[425197539,1781567447000,-300.0,0.0003442,2]
[425197548,1781567447000,-300.0,0.0003442,2]
[425197549,1781567447000,-300.0,0.0003442,2]
[425197541,1781567447000,-300.0,0.0003442,2]
[425197545,1781567447000,-300.0,0.0003442,2]
[425197551,1781567447000,-300.0,0.0003442,2]
[425197550,1781567447000,-300.0,0.0003442,2]
[425197559,1781567447000,-302.96749636,0.0003442,2]
[425197547,1781567447000,-495.28155641,0.0003442,2]
[425197555,1781567447000,-300.0,0.0003442,2]
[425197617,1781567448000,-300.0,0.0003442,2]
[425197612,1781567448000,-300.0,0.0003442,2]
[425197605,1781567448000,-300.0,0.0003442,2]
[425197606,1781567448000,-300.0,0.0003442,2]
[425197611,1781567448000,-300.0,0.0003442,2]
[425197607,1781567448000,-300.0,0.0003442,2]
[425197616,1781567448000,-300.0,0.0003442,2]
[425197610,1781567448000,-835.12773202,0.0003442,2]
[425197609,1781567448000,-300.0,0.0003442,2]
[425197604,1781567448000,-445.47580286,0.0003442,2]
[425197613,1781567448000,-1099.53596865,0.0003442,2]
[425197619,1781567448000,-300.0,0.0003442,2]
[425197615,1781567448000,-300.0,0.0003442,2]
[425197614,1781567448000,-300.0,0.0003442,2]
[425197620,1781567448000,-300.0,0.0003442,2]
[425197625,1781567448000,-300.0,0.0003442,2]
[425197624,1781567448000,-300.0,0.0003442,2]
[425197621,1781567448000,-300.0,0.0003442,2]
[425197623,1781567448000,-300.0,0.0003442,2]
[425197608,1781567448000,-300.0,0.0003442,2]
[425197626,1781567448000,-494.59915897,0.0003442,2]
[425197627,1781567448000,-300.0,0.0003442,2]
[425197618,1781567448000,-300.0,0.0003442,2]
[425197603,1781567448000,-300.0,0.0003442,2]
[425197593,1781567448000,-513.2596001,0.0003442,2]
[425197602,1781567448000,-300.0,0.0003442,2]
[425197578,1781567448000,-1804.8149799,0.0003442,2]
[425197579,1781567448000,-300.0,0.0003442,2]
[425197577,1781567448000,-952.99609518,0.0003442,2]
[425197580,1781567448000,-300.0,0.0003442,2]
[425197582,1781567448000,-300.0,0.0003442,2]
[425197581,1781567448000,-300.0,0.0003442,2]
[425197583,1781567448000,-310.80214287,0.0003442,2]
[425197584,1781567448000,-300.0,0.0003442,2]
[425197585,1781567448000,-300.0,0.0003442,2]
[425197588,1781567448000,-300.0,0.0003442,2]
[425197586,1781567448000,-1346.16314365,0.0003442,2]
[425197595,1781567448000,-583.50929019,0.0003442,2]
[425197587,1781567448000,-300.0,0.0003442,2]
[425197590,1781567448000,-596.47889358,0.0003442,2]
[425197591,1781567448000,-300.0,0.0003442,2]
[425197594,1781567448000,-300.0,0.0003442,2]
[425197628,1781567448000,-300.0,0.0003442,2]
[425197596,1781567448000,-300.0,0.0003442,2]
[425197600,1781567448000,-300.0,0.0003442,2]
[425197601,1781567448000,-300.0,0.0003442,2]
[425197599,1781567448000,-300.0,0.0003442,2]
[425197598,1781567448000,-300.0,0.0003442,2]
[425197597,1781567448000,-453.65517008,0.0003442,2]
[425197592,1781567448000,-300.0,0.0003442,2]
[425197589,1781567448000,-300.0,0.0003442,2]
[425197622,1781567448000,-300.0,0.0003442,2]
[425197629,1781567448000,-300.0,0.0003442,2]
[425197630,1781567448000,-300.0,0.0003442,2]
[425197658,1781567448000,-952.99609518,0.0003442,2]
[425197661,1781567448000,-300.0,0.0003442,2]
[425197659,1781567448000,-1804.8149799,0.0003442,2]
[425197662,1781567448000,-300.0,0.0003442,2]
[425197665,1781567448000,-300.0,0.0003442,2]
[425197667,1781567448000,-1346.16314365,0.0003442,2]
[425197666,1781567448000,-300.0,0.0003442,2]
[425197672,1781567448000,-300.0,0.0003442,2]
[425197670,1781567448000,-300.0,0.0003442,2]
[425197675,1781567448000,-300.0,0.0003442,2]
[425197668,1781567448000,-300.0,0.0003442,2]
[425197674,1781567448000,-513.2596001,0.0003442,2]
[425197631,1781567448000,-607.00878667,0.0003442,2]
[425197677,1781567448000,-300.0,0.0003442,2]
[425197673,1781567448000,-300.0,0.0003442,2]
[425197676,1781567448000,-583.50929019,0.0003442,2]
[425197669,1781567448000,-300.0,0.0003442,2]
[425197679,1781567448000,-300.0,0.0003442,2]
[425197678,1781567448000,-453.65517008,0.0003442,2]
[425197680,1781567448000,-300.0,0.0003442,2]
[425197683,1781567448000,-300.0,0.0003442,2]
[425197681,1781567448000,-300.0,0.0003442,2]
[425197682,1781567448000,-300.0,0.0003442,2]
[425197660,1781567448000,-300.0,0.0003442,2]
[425197656,1781567448000,-300.0,0.0003442,2]
[425197671,1781567448000,-596.47889358,0.0003442,2]
[425197663,1781567448000,-300.0,0.0003442,2]
[425197664,1781567448000,-310.80214287,0.0003442,2]
[425197638,1781567448000,-300.0,0.0003442,2]
[425197639,1781567448000,-302.96749636,0.0003442,2]
[425197640,1781567448000,-300.0,0.0003442,2]
[425197632,1781567448000,-300.0,0.0003442,2]
[425197635,1781567448000,-536.07617039,0.0003442,2]
[425197637,1781567448000,-729.13704685,0.0003442,2]
[425197636,1781567448000,-300.0,0.0003442,2]
[425197633,1781567448000,-300.0,0.0003442,2]
[425197634,1781567448000,-300.0,0.0003442,2]
[425197643,1781567448000,-300.0,0.0003442,2]
[425197653,1781567448000,-300.0,0.0003442,2]
[425197641,1781567448000,-300.75310972,0.0003442,2]
[425197644,1781567448000,-300.0,0.0003442,2]
[425197645,1781567448000,-300.0,0.0003442,2]
[425197657,1781567448000,-868.02305374,0.0003442,2]
[425197655,1781567448000,-300.0,0.0003442,2]
[425197654,1781567448000,-300.0,0.0003442,2]
[425197649,1781567448000,-300.0,0.0003442,2]
[425197652,1781567448000,-528.93064975,0.0003442,2]
[425197647,1781567448000,-300.0,0.0003442,2]
[425197650,1781567448000,-300.0,0.0003442,2]
[425197642,1781567448000,-301.74079207,0.0003442,2]
[425197651,1781567448000,-345.28584049,0.0003442,2]
[425197648,1781567448000,-300.0,0.0003442,2]
[425197646,1781567448000,-300.0,0.0003442,2]
[425197702,1781567449000,-500.0,0.00034453,2]
[425197701,1781567449000,-150.0,0.00034453,2]
[425197703,1781567449000,-500.0,0.00034453,2]
[425197704,1781567449000,-500.0,0.00034453,2]
[425197705,1781567449000,-150.0,0.00034453,2]
[425197711,1781567449000,-1152.3337,0.00034526,2]
[425197706,1781567449000,-150.0,0.00034453,2]
[425197709,1781567449000,-636.0,0.000345,120]
[425197707,1781567449000,-150.0,0.00034453,2]
[425197699,1781567449000,-150.0,0.00034453,2]
[425197712,1781567449000,-1902.32,0.00034541,7]
[425197714,1781567449000,-150.0,0.0003455,2]
[425197708,1781567449000,-1000.0,0.000345,2]
[425197700,1781567449000,-150.0,0.00034453,2]
[425197696,1781567449000,-5204.0,0.00034427,10]
[425197697,1781567449000,-4436.0,0.00034438,5]
[425197692,1781567449000,-500.0,0.00034423,60]
[425197695,1781567449000,-218.25,0.00034423,60]
[425197694,1781567449000,-256.7907144,0.00034423,60]
[425197693,1781567449000,-500.0,0.00034423,60]